[Event "Titled Tuesday Blitz December 7 2021"]
[White "Jobava, Baadur"]
[Black "Sviridov, Valery"]
[WhiteFideId "13601520"]
[BlackFideId "4120680"]
[WhiteElo "2932"]
[BlackElo "2999"]
[Result "1-0"]
[Round "07"]
[TimeControl "180+1"]
[Date "2021.12.07"]
[WhiteClock "0:00:03"]
[BlackClock "0:00:02"]

1. e4 {[%clk 0:03:00]}  e5 {[%clk 0:02:56]} 2. d4 {[%clk 0:02:59]}  exd4 {[%clk 0:02:55]} 3. Nf3 {[%clk 0:03:00]}  g6 {[%clk 0:02:54]} 4. Qxd4 {[%clk 0:02:57]}  Qf6 {[%clk 0:02:49]} 5. e5 {[%clk 0:02:52]}  Qe7 {[%clk 0:02:45]} 6. Nc3 {[%clk 0:02:45]}  Nc6 {[%clk 0:02:41]} 7. Qe4 {[%clk 0:02:38]}  Qb4 {[%clk 0:02:35]} 8. Bc4 {[%clk 0:02:32]}  Na5 {[%clk 0:02:15]} 9. Bd3 {[%clk 0:02:15]}  Qxe4+ {[%clk 0:02:14]} 10. Nxe4 {[%clk 0:02:15]}  Bg7 {[%clk 0:02:03]} 11. O-O {[%clk 0:02:01]}  Nc6 {[%clk 0:02:03]} 12. Re1 {[%clk 0:02:01]}  h6 {[%clk 0:01:57]} 13. c3 {[%clk 0:01:57]}  Nge7 {[%clk 0:01:57]} 14. h4 {[%clk 0:01:47]}  O-O {[%clk 0:01:55]} 15. Bf4 {[%clk 0:01:45]}  b6 {[%clk 0:01:51]} 16. Rad1 {[%clk 0:01:44]}  Kh8 {[%clk 0:01:30]} 17. Bc4 {[%clk 0:01:43]}  Nd8 {[%clk 0:01:28]} 18. Nf6 {[%clk 0:01:40]}  Ne6 {[%clk 0:01:25]} 19. Bc1 {[%clk 0:01:37]}  Rd8 {[%clk 0:01:26]} 20. Bxe6 {[%clk 0:01:32]}  fxe6 {[%clk 0:01:26]} 21. Nd4 {[%clk 0:01:32]}  Bb7 {[%clk 0:01:20]} 22. Nb5 {[%clk 0:01:32]}  Bc6 {[%clk 0:01:19]} 23. Nxc7 {[%clk 0:01:31]}  Rac8 {[%clk 0:01:19]} 24. Na6 {[%clk 0:01:31]}  Nf5 {[%clk 0:01:19]} 25. g3 {[%clk 0:01:29]}  Bxf6 {[%clk 0:01:12]} 26. exf6 {[%clk 0:01:30]}  Kg8 {[%clk 0:01:12]} 27. Nb4 {[%clk 0:01:28]}  Kf7 {[%clk 0:01:12]} 28. Nd3 {[%clk 0:01:23]}  Kxf6 {[%clk 0:01:11]} 29. Ne5 {[%clk 0:01:23]}  Bd5 {[%clk 0:01:03]} 30. b3 {[%clk 0:01:21]}  b5 {[%clk 0:01:03]} 31. Bb2 {[%clk 0:01:17]}  d6 {[%clk 0:01:02]} 32. c4 {[%clk 0:01:14]}  dxe5 {[%clk 0:00:59]} 33. Rxe5 {[%clk 0:01:01]}  Bf3 {[%clk 0:00:40]} 34. Re3+ {[%clk 0:00:57]}  Ke7 {[%clk 0:00:40]} 35. Rxd8 {[%clk 0:00:58]}  Rxd8 {[%clk 0:00:41]} 36. Rxf3 {[%clk 0:00:58]}  bxc4 {[%clk 0:00:42]} 37. bxc4 {[%clk 0:00:58]}  Rd2 {[%clk 0:00:43]} 38. Ba3+ {[%clk 0:00:55]}  Kd7 {[%clk 0:00:41]} 39. Kg2 {[%clk 0:00:30]}  e5 {[%clk 0:00:39]} 40. Rb3 {[%clk 0:00:25]}  Rxa2 {[%clk 0:00:38]} 41. g4 {[%clk 0:00:17]}  Nd4 {[%clk 0:00:19]} 42. Rb7+ {[%clk 0:00:13]}  Ke6 {[%clk 0:00:19]} 43. Rxa7 {[%clk 0:00:14]}  Nc6 {[%clk 0:00:16]} 44. Ra6 {[%clk 0:00:12]}  Kd7 {[%clk 0:00:16]} 45. Kf3 {[%clk 0:00:12]}  g5 {[%clk 0:00:15]} 46. h5 {[%clk 0:00:11]}  Nd4+ {[%clk 0:00:14]} 47. Ke4 {[%clk 0:00:11]}  Nc6 {[%clk 0:00:14]} 48. Kd5 {[%clk 0:00:10]}  Rd2+ {[%clk 0:00:14]} 49. Kc5 {[%clk 0:00:10]}  Rd6 {[%clk 0:00:09]} 50. f3 {[%clk 0:00:09]}  Rf6 {[%clk 0:00:09]} 51. Bb2 {[%clk 0:00:07]}  Re6 {[%clk 0:00:09]} 52. Bc3 {[%clk 0:00:07]}  Kc7 {[%clk 0:00:05]} 53. Kd5 {[%clk 0:00:06]}  Rd6+ {[%clk 0:00:04]} 54. Ke4 {[%clk 0:00:07]}  Re6 {[%clk 0:00:04]} 55. Ra3 {[%clk 0:00:05]}  Kd6 {[%clk 0:00:03]} 56. Kf5 {[%clk 0:00:04]}  Re8 {[%clk 0:00:03]} 57. Ra6 {[%clk 0:00:03]}  Kc5 {[%clk 0:00:03]} 58. Kg6 {[%clk 0:00:02]}  Rf8 {[%clk 0:00:03]} 59. Kxh6 {[%clk 0:00:02]}  Rxf3 {[%clk 0:00:03]} 60. Rxc6+ {[%clk 0:00:01]}  Kxc6 {[%clk 0:00:03]} 61. Bxe5 {[%clk 0:00:02]}  Kd7 {[%clk 0:00:02]} 62. Kxg5 {[%clk 0:00:03]}  Ke6 {[%clk 0:00:02]} 63. Bf4 {[%clk 0:00:03]}  Rc3 {[%clk 0:00:02]} 64. h6 {[%clk 0:00:02]}  Rxc4 {[%clk 0:00:03]} 65. h7 {[%clk 0:00:02]}  Rc8 {[%clk 0:00:04]} 66. Kg6 {[%clk 0:00:03]}  Ra8 {[%clk 0:00:02]} 67. Bg5 {[%clk 0:00:03]} 1-0


[Site "https://www.chess.com"]

[Event "Titled Tuesday Blitz December 7 2021"]
[White "Juhasz, Agoston"]
[Black "Shahade, Gregory"]
[WhiteFideId "778346"]
[BlackFideId "2009064"]
[WhiteElo "2211"]
[BlackElo "2664"]
[Result "0-1"]
[Round "07"]
[TimeControl "180+1"]
[Date "2021.12.07"]
[WhiteClock "0:00:04"]
[BlackClock "0:00:48"]

1. e4 {[%clk 0:03:00]}  e5 {[%clk 0:03:00]} 2. Nf3 {[%clk 0:02:59]}  Nc6 {[%clk 0:03:00]} 3. Bb5 {[%clk 0:02:59]}  a6 {[%clk 0:03:00]} 4. Ba4 {[%clk 0:02:58]}  Nf6 {[%clk 0:03:01]} 5. O-O {[%clk 0:02:57]}  Be7 {[%clk 0:03:01]} 6. Re1 {[%clk 0:02:55]}  b5 {[%clk 0:03:02]} 7. Bb3 {[%clk 0:02:55]}  O-O {[%clk 0:03:03]} 8. a4 {[%clk 0:02:50]}  Bb7 {[%clk 0:03:01]} 9. d3 {[%clk 0:02:49]}  d6 {[%clk 0:03:01]} 10. c3 {[%clk 0:02:49]}  Nd7 {[%clk 0:02:55]} 11. Nbd2 {[%clk 0:02:39]}  Nc5 {[%clk 0:02:55]} 12. Bc2 {[%clk 0:02:39]}  Nxa4 {[%clk 0:02:52]} 13. Bxa4 {[%clk 0:02:38]}  bxa4 {[%clk 0:02:53]} 14. Qxa4 {[%clk 0:02:37]}  Kh8 {[%clk 0:02:53]} 15. Nc4 {[%clk 0:02:35]}  f5 {[%clk 0:02:46]} 16. exf5 {[%clk 0:02:28]}  Rxf5 {[%clk 0:02:47]} 17. Ne3 {[%clk 0:02:28]}  Rxf3 {[%clk 0:02:40]} 18. gxf3 {[%clk 0:02:29]}  Qf8 {[%clk 0:02:40]} 19. Qg4 {[%clk 0:02:19]}  Qf7 {[%clk 0:02:27]} 20. d4 {[%clk 0:02:10]}  exd4 {[%clk 0:02:23]} 21. cxd4 {[%clk 0:01:47]}  Nxd4 {[%clk 0:01:59]} 22. Qxd4 {[%clk 0:01:24]}  Qxf3 {[%clk 0:01:59]} 23. Kf1 {[%clk 0:01:19]}  Rf8 {[%clk 0:01:59]} 24. Nc4 {[%clk 0:00:30]}  c5 {[%clk 0:00:48]} 25. Qe3 {[%clk 0:00:20]}  Qg4 {[%clk 0:00:48]} 26. Qg3 {[%clk 0:00:04]}  Qxc4+ {[%clk 0:00:48]} 27. Kg1 {[%clk 0:00:04]}  Bh4 {[%clk 0:00:48]} 0-1


[Site "https://www.chess.com"]

[Event "Titled Tuesday Blitz December 7 2021"]
[White "Kadam, Om Manish"]
[Black "Khanin, Semen"]
[WhiteFideId "45076294"]
[BlackFideId "4111990"]
[WhiteElo "1729"]
[BlackElo "2442"]
[Result "0-1"]
[Round "07"]
[TimeControl "180+1"]
[Date "2021.12.07"]
[WhiteClock "0:00:24"]
[BlackClock "0:01:08"]

1. e4 {[%clk 0:03:00]}  e5 {[%clk 0:02:59]} 2. Nf3 {[%clk 0:03:00]}  Nc6 {[%clk 0:03:00]} 3. Bc4 {[%clk 0:03:01]}  Bc5 {[%clk 0:02:59]} 4. c3 {[%clk 0:03:01]}  Nf6 {[%clk 0:02:58]} 5. d3 {[%clk 0:03:01]}  d6 {[%clk 0:02:56]} 6. b4 {[%clk 0:03:02]}  Bb6 {[%clk 0:02:56]} 7. a4 {[%clk 0:03:02]}  a5 {[%clk 0:02:56]} 8. b5 {[%clk 0:03:03]}  Ne7 {[%clk 0:02:56]} 9. Nbd2 {[%clk 0:03:04]}  h6 {[%clk 0:02:52]} 10. Bb3 {[%clk 0:03:04]}  c6 {[%clk 0:02:52]} 11. O-O {[%clk 0:03:03]}  O-O {[%clk 0:02:52]} 12. Nc4 {[%clk 0:03:03]}  Bc7 {[%clk 0:02:52]} 13. Re1 {[%clk 0:03:03]}  Be6 {[%clk 0:02:51]} 14. Ba3 {[%clk 0:03:03]}  Re8 {[%clk 0:02:49]} 15. d4 {[%clk 0:02:48]}  Nxe4 {[%clk 0:02:45]} 16. dxe5 {[%clk 0:02:15]}  d5 {[%clk 0:02:45]} 17. Ncd2 {[%clk 0:02:00]}  Nxc3 {[%clk 0:02:20]} 18. Qc1 {[%clk 0:01:59]}  d4 {[%clk 0:02:18]} 19. Bxe6 {[%clk 0:01:57]}  fxe6 {[%clk 0:02:18]} 20. Nb3 {[%clk 0:01:57]}  Bb6 {[%clk 0:02:10]} 21. Bd6 {[%clk 0:01:30]}  Nf5 {[%clk 0:02:10]} 22. Nfxd4 {[%clk 0:01:28]}  Nxd4 {[%clk 0:01:44]} 23. Qxc3 {[%clk 0:01:28]}  Qh4 {[%clk 0:01:34]} 24. Ra2 {[%clk 0:01:18]}  cxb5 {[%clk 0:01:26]} 25. axb5 {[%clk 0:01:08]}  Rec8 {[%clk 0:01:16]} 26. Qd3 {[%clk 0:01:04]}  a4 {[%clk 0:01:13]} 27. Nxd4 {[%clk 0:01:04]}  Qxd4 {[%clk 0:01:13]} 28. Qh3 {[%clk 0:00:43]}  Qd5 {[%clk 0:01:12]} 29. Ra3 {[%clk 0:00:43]}  Rc2 {[%clk 0:01:11]} 30. Rf1 {[%clk 0:00:39]}  Rxf2 {[%clk 0:01:09]} 31. Rd3 {[%clk 0:00:25]}  Rxg2+ {[%clk 0:01:08]} 32. Kh1 {[%clk 0:00:24]}  Rg1# {[%clk 0:01:08]} 0-1


[Site "https://www.chess.com"]

[Event "Titled Tuesday Blitz December 7 2021"]
[White "Kalajzic, Ivan"]
[Black "Vovk, Orest"]
[WhiteFideId "14506378"]
[BlackFideId "14113490"]
[WhiteElo "2163"]
[BlackElo "2203"]
[Result "0-1"]
[Round "07"]
[TimeControl "180+1"]
[Date "2021.12.07"]
[WhiteClock "0:00:49"]
[BlackClock "0:00:09"]

1. d4 {[%clk 0:03:00]}  Nc6 {[%clk 0:02:56]} 2. Nf3 {[%clk 0:02:59]}  e6 {[%clk 0:02:52]} 3. c4 {[%clk 0:02:57]}  Bb4+ {[%clk 0:02:51]} 4. Nbd2 {[%clk 0:02:56]}  a5 {[%clk 0:02:49]} 5. a3 {[%clk 0:02:55]}  Bxd2+ {[%clk 0:02:45]} 6. Bxd2 {[%clk 0:02:56]}  a4 {[%clk 0:02:46]} 7. Bc3 {[%clk 0:02:54]}  Nf6 {[%clk 0:02:45]} 8. g3 {[%clk 0:02:50]}  d6 {[%clk 0:02:40]} 9. Bg2 {[%clk 0:02:50]}  O-O {[%clk 0:02:40]} 10. O-O {[%clk 0:02:50]}  Re8 {[%clk 0:02:37]} 11. Qc2 {[%clk 0:02:45]}  e5 {[%clk 0:02:35]} 12. dxe5 {[%clk 0:02:41]}  dxe5 {[%clk 0:02:27]} 13. Rad1 {[%clk 0:02:40]}  Qe7 {[%clk 0:02:27]} 14. e3 {[%clk 0:02:30]}  Bg4 {[%clk 0:02:23]} 15. h3 {[%clk 0:02:28]}  Bxf3 {[%clk 0:02:22]} 16. Bxf3 {[%clk 0:02:28]}  e4 {[%clk 0:02:22]} 17. Bg2 {[%clk 0:02:24]}  Ne5 {[%clk 0:02:22]} 18. Bxe5 {[%clk 0:02:22]}  Qxe5 {[%clk 0:02:22]} 19. Rd4 {[%clk 0:02:21]}  c5 {[%clk 0:02:19]} 20. Rd2 {[%clk 0:02:20]}  h5 {[%clk 0:02:04]} 21. Rfd1 {[%clk 0:02:16]}  h4 {[%clk 0:02:01]} 22. g4 {[%clk 0:02:17]}  b6 {[%clk 0:01:47]} 23. Qc3 {[%clk 0:02:16]}  Qxc3 {[%clk 0:01:40]} 24. bxc3 {[%clk 0:02:17]}  Rab8 {[%clk 0:01:39]} 25. Rb2 {[%clk 0:02:09]}  Re6 {[%clk 0:01:35]} 26. Rdb1 {[%clk 0:02:05]}  Nd7 {[%clk 0:01:28]} 27. Bf1 {[%clk 0:01:56]}  Rd6 {[%clk 0:01:12]} 28. Be2 {[%clk 0:01:55]}  g6 {[%clk 0:01:05]} 29. Kf1 {[%clk 0:01:55]}  f5 {[%clk 0:01:00]} 30. Ke1 {[%clk 0:01:53]}  Kf7 {[%clk 0:00:58]} 31. Rd2 {[%clk 0:01:50]}  Rxd2 {[%clk 0:00:57]} 32. Kxd2 {[%clk 0:01:51]}  Ne5 {[%clk 0:00:54]} 33. Kc2 {[%clk 0:01:49]}  fxg4 {[%clk 0:00:51]} 34. hxg4 {[%clk 0:01:49]}  g5 {[%clk 0:00:48]} 35. Rd1 {[%clk 0:01:47]}  Ke6 {[%clk 0:00:47]} 36. Rh1 {[%clk 0:01:40]}  Rf8 {[%clk 0:00:44]} 37. Rh2 {[%clk 0:01:38]}  Rh8 {[%clk 0:00:27]} 38. Kd2 {[%clk 0:01:35]}  Nf3+ {[%clk 0:00:17]} 39. Bxf3 {[%clk 0:01:35]}  exf3 {[%clk 0:00:18]} 40. e4 {[%clk 0:01:35]}  Ke5 {[%clk 0:00:16]} 41. Ke3 {[%clk 0:01:36]}  Rf8 {[%clk 0:00:16]} 42. Rh3 {[%clk 0:01:29]}  Rf4 {[%clk 0:00:16]} 43. Rxf3 {[%clk 0:01:27]}  Rxe4+ {[%clk 0:00:16]} 44. Kd3 {[%clk 0:01:28]}  Rxg4 {[%clk 0:00:17]} 45. Re3+ {[%clk 0:01:27]}  Kf6 {[%clk 0:00:14]} 46. Re8 {[%clk 0:01:22]}  h3 {[%clk 0:00:13]} 47. Re1 {[%clk 0:01:08]}  h2 {[%clk 0:00:12]} 48. Rh1 {[%clk 0:01:08]}  Rg2 {[%clk 0:00:12]} 49. Ke3 {[%clk 0:01:08]}  g4 {[%clk 0:00:12]} 50. Ke2 {[%clk 0:01:03]}  g3 {[%clk 0:00:09]} 51. Kf3 {[%clk 0:01:03]}  Rxf2+ {[%clk 0:00:09]} 52. Kxg3 {[%clk 0:01:04]}  Rc2 {[%clk 0:00:09]} 53. Rf1+ {[%clk 0:00:56]}  Ke5 {[%clk 0:00:09]} 54. Rd1 {[%clk 0:00:55]}  Rxc3+ {[%clk 0:00:07]} 55. Kxh2 {[%clk 0:00:55]}  Rxa3 {[%clk 0:00:07]} 56. Re1+ {[%clk 0:00:53]}  Kd4 {[%clk 0:00:07]} 57. Rc1 {[%clk 0:00:53]}  Rc3 {[%clk 0:00:07]} 58. Rb1 {[%clk 0:00:51]}  Rb3 {[%clk 0:00:07]} 59. Rc1 {[%clk 0:00:50]}  a3 {[%clk 0:00:08]} 60. Kg2 {[%clk 0:00:50]}  a2 {[%clk 0:00:07]} 61. Ra1 {[%clk 0:00:49]}  Rb2+ {[%clk 0:00:07]} 62. Kf3 {[%clk 0:00:49]}  Kxc4 {[%clk 0:00:08]} 63. Ke3 {[%clk 0:00:49]}  Kb3 {[%clk 0:00:09]} 64. Kd3 {[%clk 0:00:49]}  Rb1 {[%clk 0:00:09]} 0-1


[Site "https://www.chess.com"]

[Event "Titled Tuesday Blitz December 7 2021"]
[White "Kim, Sergey"]
[Black "Cruz Mendez, Jean Marco"]
[WhiteFideId "13700570"]
[BlackFideId "3526402"]
[WhiteElo "2589"]
[BlackElo "2064"]
[Result "1-0"]
[Round "07"]
[TimeControl "180+1"]
[Date "2021.12.07"]
[WhiteClock "0:00:50"]
[BlackClock "0:00:25"]

1. d4 {[%clk 0:03:00]}  Nf6 {[%clk 0:03:00]} 2. c4 {[%clk 0:03:01]}  g6 {[%clk 0:02:59]} 3. Nc3 {[%clk 0:03:01]}  Bg7 {[%clk 0:02:58]} 4. e4 {[%clk 0:03:01]}  d6 {[%clk 0:02:58]} 5. Nge2 {[%clk 0:03:01]}  O-O {[%clk 0:02:58]} 6. Ng3 {[%clk 0:03:01]}  c5 {[%clk 0:02:58]} 7. d5 {[%clk 0:03:00]}  h5 {[%clk 0:02:54]} 8. h4 {[%clk 0:02:59]}  a6 {[%clk 0:02:50]} 9. a4 {[%clk 0:02:57]}  Nbd7 {[%clk 0:02:47]} 10. Be2 {[%clk 0:02:56]}  Rb8 {[%clk 0:02:42]} 11. O-O {[%clk 0:02:55]}  Ne5 {[%clk 0:02:40]} 12. Ra3 {[%clk 0:02:46]}  Bd7 {[%clk 0:02:35]} 13. Bf4 {[%clk 0:02:37]}  Neg4 {[%clk 0:02:20]} 14. f3 {[%clk 0:02:33]}  Nh6 {[%clk 0:02:17]} 15. Qd2 {[%clk 0:02:33]}  Kh7 {[%clk 0:02:16]} 16. e5 {[%clk 0:02:28]}  Ne8 {[%clk 0:02:10]} 17. Nce4 {[%clk 0:01:51]}  dxe5 {[%clk 0:02:07]} 18. Be3 {[%clk 0:01:43]}  b6 {[%clk 0:02:05]} 19. Ng5+ {[%clk 0:01:29]}  Kg8 {[%clk 0:02:03]} 20. Ne6 {[%clk 0:01:23]}  Bxe6 {[%clk 0:01:59]} 21. Bxh6 {[%clk 0:01:24]}  Bd7 {[%clk 0:01:57]} 22. Bxg7 {[%clk 0:01:21]}  Kxg7 {[%clk 0:01:58]} 23. Qg5 {[%clk 0:01:16]}  f5 {[%clk 0:01:01]} 24. f4 {[%clk 0:01:01]}  e4 {[%clk 0:00:25]} 25. Bxh5 {[%clk 0:00:52]}  Kf7 {[%clk 0:00:25]} 26. Qxg6# {[%clk 0:00:50]} 1-0


[Site "https://www.chess.com"]

[Event "Titled Tuesday Blitz December 7 2021"]
[White "King, Alexander"]
[Black "Miszler, Levente"]
[WhiteFideId "2063620"]
[BlackFideId "763276"]
[WhiteElo "2306"]
[BlackElo "1966"]
[Result "0-1"]
[Round "07"]
[TimeControl "180+1"]
[Date "2021.12.07"]
[WhiteClock "0:00:11"]
[BlackClock "0:00:30"]

1. d4 {[%clk 0:03:00]}  Nf6 {[%clk 0:02:57]} 2. Bg5 {[%clk 0:03:01]}  g6 {[%clk 0:02:50]} 3. Nc3 {[%clk 0:02:59]}  d5 {[%clk 0:02:49]} 4. Qd2 {[%clk 0:02:59]}  Bg7 {[%clk 0:02:48]} 5. O-O-O {[%clk 0:02:59]}  c6 {[%clk 0:02:44]} 6. f3 {[%clk 0:02:56]}  O-O {[%clk 0:02:40]} 7. Bh6 {[%clk 0:02:53]}  b5 {[%clk 0:02:40]} 8. h4 {[%clk 0:02:36]}  a5 {[%clk 0:02:40]} 9. g4 {[%clk 0:02:32]}  a4 {[%clk 0:02:37]} 10. h5 {[%clk 0:02:22]}  b4 {[%clk 0:02:36]} 11. Nb1 {[%clk 0:02:22]}  b3 {[%clk 0:02:33]} 12. cxb3 {[%clk 0:02:19]}  axb3 {[%clk 0:02:34]} 13. a3 {[%clk 0:02:14]}  Nbd7 {[%clk 0:02:21]} 14. hxg6 {[%clk 0:02:00]}  fxg6 {[%clk 0:02:20]} 15. Bxg7 {[%clk 0:02:01]}  Kxg7 {[%clk 0:02:20]} 16. Qh6+ {[%clk 0:02:01]}  Kg8 {[%clk 0:02:21]} 17. Nh3 {[%clk 0:02:02]}  e5 {[%clk 0:02:13]} 18. Ng5 {[%clk 0:01:56]}  Qe7 {[%clk 0:02:13]} 19. e4 {[%clk 0:01:48]}  exd4 {[%clk 0:02:05]} 20. exd5 {[%clk 0:01:09]}  cxd5 {[%clk 0:01:57]} 21. Bd3 {[%clk 0:01:00]}  Ba6 {[%clk 0:01:41]} 22. Bxg6 {[%clk 0:00:28]}  Rfc8+ {[%clk 0:01:40]} 23. Nc3 {[%clk 0:00:28]}  Nf8 {[%clk 0:00:36]} 24. Bf7+ {[%clk 0:00:26]}  Kh8 {[%clk 0:00:35]} 25. Rde1 {[%clk 0:00:21]}  Rxc3+ {[%clk 0:00:33]} 26. Kb1 {[%clk 0:00:11]}  Bd3+ {[%clk 0:00:30]} 0-1


[Site "https://www.chess.com"]

[Event "Titled Tuesday Blitz December 7 2021"]
[White "Korchmar, Vasiliy"]
[Black "Volkov, Maksim"]
[WhiteFideId "24131750"]
[BlackFideId "54123070"]
[WhiteElo "2370"]
[BlackElo "2081"]
[Result "1-0"]
[Round "07"]
[TimeControl "180+1"]
[Date "2021.12.07"]
[WhiteClock "0:01:48"]
[BlackClock "0:02:15"]

1. e4 {[%clk 0:03:00]}  e6 {[%clk 0:02:59]} 2. d4 {[%clk 0:03:00]}  d5 {[%clk 0:03:00]} 3. exd5 {[%clk 0:03:01]}  exd5 {[%clk 0:03:00]} 4. Nf3 {[%clk 0:03:01]}  Bd6 {[%clk 0:03:00]} 5. c4 {[%clk 0:03:01]}  dxc4 {[%clk 0:02:57]} 6. Bxc4 {[%clk 0:03:02]}  Nf6 {[%clk 0:02:57]} 7. Qe2+ {[%clk 0:02:59]}  Qe7 {[%clk 0:02:56]} 8. Qxe7+ {[%clk 0:02:59]}  Kxe7 {[%clk 0:02:57]} 9. O-O {[%clk 0:02:59]}  Rd8 {[%clk 0:02:57]} 10. Nc3 {[%clk 0:02:58]}  h6 {[%clk 0:02:53]} 11. Re1+ {[%clk 0:02:50]}  Kf8 {[%clk 0:02:53]} 12. Ne5 {[%clk 0:02:50]}  Bxe5 {[%clk 0:02:41]} 13. dxe5 {[%clk 0:02:51]}  Ng8 {[%clk 0:02:38]} 14. Nd5 {[%clk 0:02:20]}  Rd7 {[%clk 0:02:34]} 15. b3 {[%clk 0:02:19]}  c6 {[%clk 0:02:29]} 16. Ba3+ {[%clk 0:02:18]}  Ke8 {[%clk 0:02:29]} 17. Nf4 {[%clk 0:02:03]}  Rd4 {[%clk 0:02:22]} 18. e6 {[%clk 0:01:57]}  f5 {[%clk 0:02:20]} 19. e7 {[%clk 0:01:49]}  Nf6 {[%clk 0:02:16]} 20. Nh5 {[%clk 0:01:50]}  Bd7 {[%clk 0:02:15]} 21. Nxg7# {[%clk 0:01:48]} 1-0


[Site "https://www.chess.com"]

[Event "Titled Tuesday Blitz December 7 2021"]
[White "Koutlas, Nikolaos"]
[Black "Donchenko, Alexander"]
[WhiteFideId "25827138"]
[BlackFideId "24603295"]
[WhiteElo "1525"]
[BlackElo "2494"]
[Result "1/2-1/2"]
[Round "07"]
[TimeControl "180+1"]
[Date "2021.12.07"]
[WhiteClock "0:00:05"]
[BlackClock "0:00:21"]

1. e4 {[%clk 0:03:00]}  c6 {[%clk 0:03:00]} 2. d4 {[%clk 0:02:58]}  d5 {[%clk 0:03:01]} 3. e5 {[%clk 0:02:58]}  Bf5 {[%clk 0:03:01]} 4. h4 {[%clk 0:02:55]}  h5 {[%clk 0:03:01]} 5. Bd3 {[%clk 0:02:55]}  Bxd3 {[%clk 0:03:01]} 6. Qxd3 {[%clk 0:02:56]}  Qa5+ {[%clk 0:03:01]} 7. Nd2 {[%clk 0:02:55]}  e6 {[%clk 0:03:01]} 8. Ne2 {[%clk 0:02:55]}  Qa6 {[%clk 0:03:00]} 9. c4 {[%clk 0:02:55]}  Ne7 {[%clk 0:02:59]} 10. b3 {[%clk 0:02:54]}  Nf5 {[%clk 0:02:59]} 11. Ng3 {[%clk 0:02:53]}  Nxg3 {[%clk 0:02:51]} 12. fxg3 {[%clk 0:02:54]}  Bb4 {[%clk 0:02:40]} 13. O-O {[%clk 0:02:52]}  Nd7 {[%clk 0:02:32]} 14. Nf3 {[%clk 0:02:45]}  Be7 {[%clk 0:02:13]} 15. Bg5 {[%clk 0:02:42]}  dxc4 {[%clk 0:02:06]} 16. bxc4 {[%clk 0:02:40]}  Qa3 {[%clk 0:02:06]} 17. Qe4 {[%clk 0:02:34]}  g6 {[%clk 0:01:51]} 18. Rab1 {[%clk 0:02:27]}  Rb8 {[%clk 0:01:42]} 19. Rb3 {[%clk 0:01:32]}  Qxa2 {[%clk 0:01:38]} 20. Bxe7 {[%clk 0:01:32]}  Kxe7 {[%clk 0:01:15]} 21. Qe3 {[%clk 0:00:57]}  Nb6 {[%clk 0:01:02]} 22. Ng5 {[%clk 0:00:53]}  Rhf8 {[%clk 0:01:02]} 23. d5 {[%clk 0:00:45]}  Qa5 {[%clk 0:00:50]} 24. Rb5 {[%clk 0:00:19]}  cxb5 {[%clk 0:00:39]} 25. Qc5+ {[%clk 0:00:19]}  Ke8 {[%clk 0:00:40]} 26. dxe6 {[%clk 0:00:19]}  Nxc4 {[%clk 0:00:40]} 27. exf7+ {[%clk 0:00:19]}  Rxf7 {[%clk 0:00:40]} 28. Rxf7 {[%clk 0:00:17]}  Qb6 {[%clk 0:00:41]} 29. Qxb6 {[%clk 0:00:13]}  axb6 {[%clk 0:00:34]} 30. e6 {[%clk 0:00:11]}  Ne5 {[%clk 0:00:30]} 31. Rh7 {[%clk 0:00:10]}  Rd8 {[%clk 0:00:27]} 32. Rxb7 {[%clk 0:00:09]}  Ng4 {[%clk 0:00:24]} 33. Kf1 {[%clk 0:00:09]}  Rd6 {[%clk 0:00:23]} 34. Rb8+ {[%clk 0:00:06]}  Ke7 {[%clk 0:00:23]} 35. Rb7+ {[%clk 0:00:06]}  Ke8 {[%clk 0:00:24]} 36. Rb8+ {[%clk 0:00:06]}  Ke7 {[%clk 0:00:24]} 37. Rb7+ {[%clk 0:00:05]}  Ke8 {[%clk 0:00:21]} 1/2-1/2


[Site "https://www.chess.com"]

[Event "Titled Tuesday Blitz December 7 2021"]
[White "Licznerski, Lukasz"]
[Black "Rozhkov, Viacheslav"]
[WhiteFideId "1179250"]
[BlackFideId "4181484"]
[WhiteElo "2403"]
[BlackElo "2324"]
[Result "1-0"]
[Round "07"]
[TimeControl "180+1"]
[Date "2021.12.07"]
[WhiteClock "0:01:21"]
[BlackClock "0:00:04"]

1. e4 {[%clk 0:03:00]}  c5 {[%clk 0:02:59]} 2. Nf3 {[%clk 0:03:00]}  d6 {[%clk 0:02:59]} 3. d4 {[%clk 0:03:01]}  cxd4 {[%clk 0:03:00]} 4. Nxd4 {[%clk 0:03:02]}  Nf6 {[%clk 0:03:00]} 5. Nc3 {[%clk 0:03:02]}  a6 {[%clk 0:03:00]} 6. Be2 {[%clk 0:03:01]}  e5 {[%clk 0:02:59]} 7. Nf3 {[%clk 0:03:01]}  Be7 {[%clk 0:02:59]} 8. Bg5 {[%clk 0:03:01]}  Be6 {[%clk 0:02:58]} 9. Bxf6 {[%clk 0:03:00]}  Bxf6 {[%clk 0:02:58]} 10. Nd5 {[%clk 0:02:59]}  Bxd5 {[%clk 0:02:46]} 11. Qxd5 {[%clk 0:02:58]}  Nc6 {[%clk 0:02:43]} 12. O-O {[%clk 0:02:55]}  O-O {[%clk 0:02:42]} 13. Rfd1 {[%clk 0:02:53]}  Be7 {[%clk 0:02:41]} 14. Bc4 {[%clk 0:02:52]}  Rc8 {[%clk 0:02:40]} 15. c3 {[%clk 0:02:48]}  Kh8 {[%clk 0:02:34]} 16. Qd2 {[%clk 0:02:38]}  b5 {[%clk 0:02:14]} 17. Bd5 {[%clk 0:02:37]}  Qc7 {[%clk 0:02:11]} 18. a4 {[%clk 0:02:36]}  Na5 {[%clk 0:02:06]} 19. axb5 {[%clk 0:02:31]}  axb5 {[%clk 0:02:06]} 20. Qe2 {[%clk 0:02:24]}  Qb6 {[%clk 0:01:29]} 21. Ne1 {[%clk 0:02:12]}  Nc4 {[%clk 0:01:20]} 22. Nd3 {[%clk 0:02:06]}  Qc7 {[%clk 0:01:06]} 23. Nb4 {[%clk 0:02:02]}  Qc5 {[%clk 0:00:53]} 24. Ra6 {[%clk 0:01:53]}  Nb6 {[%clk 0:00:50]} 25. Bb3 {[%clk 0:01:36]}  g6 {[%clk 0:00:15]} 26. Rda1 {[%clk 0:01:33]}  Kg7 {[%clk 0:00:12]} 27. Ra7 {[%clk 0:01:32]}  Rc7 {[%clk 0:00:10]} 28. Rxc7 {[%clk 0:01:26]}  Qxc7 {[%clk 0:00:10]} 29. Qxb5 {[%clk 0:01:26]}  f5 {[%clk 0:00:10]} 30. Nc6 {[%clk 0:01:23]}  Ra8 {[%clk 0:00:06]} 31. Rxa8 {[%clk 0:01:23]}  Nxa8 {[%clk 0:00:06]} 32. Qd5 {[%clk 0:01:23]}  Qb8 {[%clk 0:00:04]} 33. Qf7+ {[%clk 0:01:21]} 1-0


[Site "https://www.chess.com"]